fUST/lending_fUST_20250812
["ID","MTS","AMOUNT","RATE_DAILY","PERIOD"]
[378712943,1754986232425,-500.0,0.00018652,2]
[378712944,1754986232434,-500.0,0.00018652,2]
[378712945,1754986232444,-500.0,0.00018652,2]
[378712946,1754986232454,-500.0,0.00018652,2]
[378712947,1754986232464,-500.0,0.00018652,2]
[378712948,1754986232473,-500.0,0.00018652,2]
[378712949,1754986232483,-500.0,0.00018652,2]
[378712950,1754986232492,-537.23232682,0.00018652,2]
[378712951,1754986232503,-500.0,0.00018652,2]
[378712952,1754986232514,-500.0,0.00018652,2]
[378712953,1754986232524,-500.0,0.00018652,2]
[378712954,1754986232713,-500.0,0.00018652,2]
[378712955,1754986232722,-500.0,0.00018652,2]
[378712956,1754986232732,-500.0,0.00018652,2]
[378712957,1754986232741,-500.0,0.00018652,2]
[378712958,1754986232751,-500.0,0.00018652,2]
[378712959,1754986232761,-500.0,0.00018652,2]
[378712960,1754986232770,-500.0,0.00018652,2]
[378712961,1754986232780,-500.0,0.00018652,2]
[378712962,1754986232789,-500.0,0.00018652,2]
[378712963,1754986232799,-500.0,0.00018652,2]
[378712964,1754986232809,-500.0,0.00018652,2]
[378712965,1754986232819,-500.0,0.00018652,2]
[378712966,1754986232829,-500.0,0.00018652,2]
[378712967,1754986232839,-500.0,0.00018652,2]
[378712968,1754986232848,-229.60712775,0.00018652,2]
[378712969,1754986232857,-500.0,0.00018652,2]
[378712970,1754986232867,-500.0,0.00018652,2]
[378712971,1754986232876,-500.0,0.00018652,2]
[378712972,1754986232885,-336.4485182,0.00018652,2]
[378712973,1754986232894,-500.0,0.00018652,2]
[378712974,1754986232903,-500.0,0.00018652,2]
[378712975,1754986232913,-1200.0,0.00018652,2]
[378712976,1754986232922,-168.20279304,0.00018652,2]
[378712977,1754986232931,-288.38325421,0.00018652,2]
[378712978,1754986232940,-472.05850364,0.00018652,2]
[378712979,1754986232950,-460.0,0.00018652,2]
[378712980,1754986232959,-460.0,0.00018653,2]
[378712981,1754986232968,-460.0,0.00018653,2]
[378712982,1754986232977,-460.0,0.00018653,2]
[378712983,1754986232986,-460.0,0.00018653,2]
[378712984,1754986232995,-471.89,0.00018653,2]
[378712985,1754986233005,-1945.26,0.00018653,2]
[378712986,1754986233015,-4043.71,0.00018653,2]
[378712987,1754986233029,-460.0,0.00018653,2]
[378712988,1754986233038,-796.05,0.00018653,2]
[378712989,1754986233047,-460.0,0.00018653,2]
[378712990,1754986233057,-514.45,0.00018653,2]
[378712991,1754986233067,-460.0,0.00018653,2]
[378712992,1754986233080,-460.0,0.00018653,2]
[378712993,1754986233094,-397.01377283,0.00018653,2]
[378712994,1754986233106,-2904.4,0.00018653,2]
[378712995,1754986233116,-2487.14,0.00018653,2]
[378712996,1754986233126,-569.72930026,0.00018654,2]
[378712997,1754986233135,-554.21,0.00018654,2]
[378712998,1754986233144,-460.0,0.00018654,2]
[378712999,1754986233154,-460.0,0.00018654,2]
[378713000,1754986233163,-3619.0,0.00018654,2]
[378713001,1754986233173,-841.17,0.00018654,2]
[378713002,1754986233182,-566.36993143,0.00018654,2]
[378713003,1754986233191,-536.39,0.00018654,2]
[378713004,1754986233201,-826.72,0.00018654,2]
[378713005,1754986233211,-1836.03,0.00018654,2]
[378713006,1754986233220,-841.94,0.00018654,2]
[378713007,1754986233230,-460.0,0.00018654,2]
[378713008,1754986233239,-460.0,0.00018654,2]
[378713009,1754986233248,-460.0,0.00018654,2]
[378713010,1754986233257,-1158.52,0.00018654,2]
[378713011,1754986233266,-460.0,0.00018654,2]
[378713012,1754986233276,-460.0,0.00018654,2]
[378713013,1754986233285,-1048.53,0.00018654,2]
[378713014,1754986233294,-549.15,0.00018654,2]
[378713015,1754986233303,-152.979245,0.00018654,2]
[378713016,1754986233312,-1241.16,0.00018654,2]
[378713017,1754986233321,-1683.84,0.00018654,2]
[378713018,1754986233331,-151.0,0.00018654,2]
[378713019,1754986233340,-460.0,0.00018654,2]
[378713020,1754986233350,-460.0,0.00018654,2]
[378713021,1754986233359,-460.0,0.00018654,2]
[378713022,1754986233368,-151.0,0.00018654,2]
[378713023,1754986233378,-151.0,0.00018654,2]
[378713024,1754986233388,-460.0,0.00018654,2]
[378713025,1754986233398,-151.0,0.00018654,2]
[378713026,1754986233407,-151.0,0.00018654,2]
[378713027,1754986233417,-460.0,0.00018654,2]
[378713028,1754986233426,-460.0,0.00018654,2]
[378713029,1754986233435,-750.44,0.00018654,2]
[378713030,1754986233445,-759.41,0.00018654,2]
[378713031,1754986233455,-563.14,0.00018655,2]
[378713032,1754986233470,-460.0,0.00018655,2]
[378713033,1754986233480,-460.0,0.00018655,2]
[378713034,1754986233489,-460.0,0.00018655,2]
[378713035,1754986233499,-166.67088707,0.00018655,2]
[378713036,1754986233508,-460.0,0.00018655,2]
[378713037,1754986233518,-463.12660417,0.00018655,2]
[378713038,1754986233528,-464.28484874,0.00018655,2]
[378713039,1754986233537,-460.0,0.00018655,2]
[378713040,1754986233547,-460.0,0.00018655,2]
[378713041,1754986233556,-460.0,0.00018655,2]
[378713042,1754986233566,-515.23394182,0.00018655,2]
[378713043,1754986233575,-460.0,0.00018655,2]
[378713044,1754986233585,-460.0,0.00018655,2]
[378713045,1754986233594,-460.0,0.00018655,2]
[378713046,1754986233604,-460.0,0.00018655,2]
[378713047,1754986233613,-460.0,0.00018655,2]
[378713048,1754986233622,-460.0,0.00018655,2]
[378713049,1754986233632,-460.0,0.00018655,2]
[378713050,1754986233642,-507.22,0.00018655,2]
[378713051,1754986233652,-460.0,0.00018655,2]
[378713052,1754986233661,-460.0,0.00018655,2]
[378713053,1754986233671,-460.0,0.00018655,2]
[378713054,1754986233680,-460.0,0.00018655,2]
[378713055,1754986233690,-460.0,0.00018655,2]
[378713056,1754986233701,-557.42,0.00018655,2]
[378713057,1754986233711,-869.32,0.00018655,2]
[378713058,1754986233721,-648.05,0.00018655,2]
[378713059,1754986233731,-460.0,0.00018655,2]
[378713060,1754986233741,-460.0,0.00018655,2]
[378713061,1754986233751,-460.0,0.00018655,2]
[378713062,1754986233760,-460.0,0.00018655,2]
[378713063,1754986233770,-460.0,0.00018655,2]
[378713064,1754986233779,-561.29059283,0.00018655,2]
[378713065,1754986233789,-551.21286829,0.00018655,2]
[378713066,1754986233799,-460.0,0.00018655,2]
[378713067,1754986233809,-460.0,0.00018655,2]
[378713068,1754986233819,-461.34887643,0.00018655,2]
[378713069,1754986233829,-472.92155857,0.00018655,2]
[378713070,1754986233839,-309.16672412,0.00018655,2]
[378713071,1754986233849,-460.0,0.00018655,2]
[378713072,1754986233859,-460.0,0.00018655,2]
[378713073,1754986233868,-460.0,0.00018655,2]
[378713074,1754986233878,-463.24408336,0.00018655,2]
[378713075,1754986233888,-460.0,0.00018655,2]
[378713076,1754986233898,-460.0,0.00018655,2]
[378713077,1754986233908,-460.0,0.00018655,2]
[378713078,1754986233918,-460.0,0.00018655,2]
[378713079,1754986233928,-460.0,0.00018655,2]
[378713080,1754986233937,-594.37,0.00018655,2]
[378713081,1754986233947,-460.0,0.00018655,2]
[378713082,1754986233957,-151.0,0.00018655,2]
[378713083,1754986233967,-462.10162418,0.00018655,2]
[378713084,1754986233976,-460.0,0.00018655,2]
[378713085,1754986233986,-934.5,0.00018655,2]
[378713086,1754986233995,-462.11168406,0.00018655,2]
[378713087,1754986234005,-598.73140056,0.00018655,2]
[378713088,1754986234015,-515.43,0.00018655,2]
[378713089,1754986234025,-460.0,0.00018655,2]
[378713090,1754986234035,-713.42,0.00018655,2]
[378713091,1754986234045,-460.0,0.00018655,2]
[378713092,1754986234054,-460.0,0.00018655,2]
[378713093,1754986234067,-460.0,0.00018655,2]
[378713094,1754986234077,-463.9789896,0.00018655,2]
[378713095,1754986234086,-492.33897789,0.00018655,2]
[378713096,1754986234095,-362.42993088,0.00018655,2]
[378713097,1754986234108,-462.37533983,0.00018655,2]
[378713098,1754986234118,-460.0,0.00018655,2]
[378713099,1754986234127,-460.0,0.00018655,2]
[378713100,1754986234137,-460.0,0.00018655,2]
[378713101,1754986234146,-151.0,0.00018655,2]
[378713102,1754986234155,-460.0,0.00018655,2]
[378713103,1754986234164,-460.0,0.00018655,2]
[378713104,1754986234173,-460.0,0.00018655,2]
[378713105,1754986234183,-461.52442613,0.00018655,2]
[378713106,1754986234192,-151.0,0.00018655,2]
[378713107,1754986234203,-462.61051379,0.00018655,2]
[378713108,1754986234214,-460.0,0.00018655,2]
[378713109,1754986234225,-463.54914763,0.00018655,2]
[378713110,1754986234234,-470.6,0.00018655,2]
[378713111,1754986234243,-460.0,0.00018655,2]
[378713112,1754986234254,-747.12,0.00018655,2]
[378713113,1754986234264,-460.0,0.00018655,2]
[378713114,1754986234273,-460.0,0.00018655,2]
[378713115,1754986234282,-460.0,0.00018655,2]
[378713116,1754986234292,-460.0,0.00018655,2]
[378713117,1754986234302,-460.0,0.00018655,2]
[378713118,1754986234311,-460.0,0.00018655,2]
[378713119,1754986234322,-460.0,0.00018655,2]
[378713120,1754986234333,-460.0,0.00018655,2]
[378713121,1754986234348,-460.0,0.00018655,2]
[378713122,1754986234357,-460.0,0.00018655,2]
[378713123,1754986234366,-462.307271,0.00018655,2]
[378713124,1754986234375,-460.0,0.00018655,2]
[378713125,1754986234385,-505.67931982,0.00018655,2]
[378713126,1754986234394,-269.17125501,0.00018655,2]
[378713127,1754986234404,-460.0,0.00018655,2]
[378713128,1754986234413,-460.0,0.00018655,2]
[378713129,1754986234423,-462.19365679,0.00018655,2]
[378713130,1754986234432,-460.0,0.00018655,2]
[378713131,1754986234441,-460.0,0.00018655,2]
[378713132,1754986234451,-460.0,0.00018655,2]
[378713133,1754986234461,-462.02430608,0.00018655,2]
[378713134,1754986234470,-462.17576323,0.00018655,2]
[378713135,1754986234479,-461.3395453,0.00018655,2]
[378713136,1754986234489,-460.0,0.00018655,2]
[378713137,1754986234498,-479.28791286,0.00018655,2]
[378713138,1754986234507,-460.0,0.00018655,2]
[378713139,1754986234516,-460.0,0.00018655,2]
[378713140,1754986234525,-282.11982769,0.00018655,2]
[378713141,1754986234535,-460.75290682,0.00018655,2]
[378713142,1754986234544,-460.0,0.00018655,2]
[378713143,1754986234554,-460.0,0.00018655,2]
[378713144,1754986234563,-460.0,0.00018655,2]
[378713145,1754986234572,-463.68501559,0.00018655,2]
[378713146,1754986234582,-151.0,0.00018655,2]
[378713147,1754986234592,-460.0,0.00018655,2]
[378713148,1754986234602,-460.0,0.00018655,2]
[378713149,1754986234611,-957.64,0.00018655,2]
[378713150,1754986234621,-570.02383383,0.00018655,2]
[378713151,1754986234632,-885.85,0.00018655,2]
[378713152,1754986234642,-151.0,0.00018655,2]
[378713153,1754986234651,-575.08,0.00018655,2]
[378713154,1754986234661,-460.0,0.00018655,2]
[378713155,1754986234671,-639.46,0.00018655,2]
[378713156,1754986234680,-460.0,0.00018655,2]
[378713157,1754986234689,-460.0,0.00018655,2]
[378713158,1754986234699,-467.86793235,0.00018655,2]
[378713159,1754986234708,-460.0,0.00018655,2]
[378713160,1754986234718,-460.0,0.00018655,2]
[378713161,1754986234727,-460.0,0.00018655,2]
[378713162,1754986234736,-460.0,0.00018655,2]
[378713163,1754986234744,-275.289959,0.00018655,2]
[378713164,1754986234753,-460.0,0.00018655,2]
[378713165,1754986234760,-1007.31,0.00018655,2]
[378713166,1754986234768,-275.289959,0.00018655,2]
[378713167,1754986234776,-460.0,0.00018655,2]
[378713168,1754986234785,-3616.70097972,0.00018655,2]
[378713207,1754986237806,-525.38,0.00018645,3]
[378713208,1754986237817,-5189.79902028,0.00018655,2]
[378713210,1754986237827,-500.0,0.00018655,2]
[378713211,1754986237837,-500.0,0.00018655,2]
[378713212,1754986237847,-502.3125816,0.00018655,2]
[378713213,1754986237856,-639.62,0.00018655,2]
[378713214,1754986237865,-873.38364613,0.00018655,2]
[378713215,1754986237897,-517.84635387,0.00018655,2]
[378713217,1754986237906,-151.0,0.00018655,2]
[378713219,1754986237915,-460.0,0.00018655,2]
[378713221,1754986237925,-467.99362962,0.00018655,2]
[378713222,1754986237935,-151.0,0.00018655,2]
[378713223,1754986237944,-151.0,0.00018655,2]
[378713224,1754986237953,-460.0,0.00018655,2]
[378713225,1754986237963,-461.45396177,0.00018655,2]
[378713226,1754986237972,-460.0,0.00018655,2]
[378713227,1754986237982,-460.0,0.00018655,2]
[378713228,1754986237991,-511.43498744,0.00018655,2]
[378713229,1754986238002,-151.0,0.00018655,2]
[378713230,1754986238012,-151.0,0.00018655,2]
[378713231,1754986238022,-460.0,0.00018655,2]
[378713232,1754986238034,-2828.99,0.00018655,2]
[378713233,1754986238043,-460.0,0.00018655,2]
[378713234,1754986238054,-151.0,0.00018655,2]
[378713235,1754986238063,-277.581295,0.00018655,2]
[378713236,1754986238075,-460.0,0.00018655,2]
[378713237,1754986238086,-461.7022495,0.00018655,2]
[378713238,1754986238096,-460.0,0.00018655,2]
[378713239,1754986238108,-461.48419021,0.00018655,2]
[378713240,1754986238119,-460.0,0.00018655,2]
[378713241,1754986238129,-1297.64,0.00018655,2]
[378713242,1754986238140,-462.43010317,0.00018655,2]
[378713243,1754986238154,-460.0,0.00018655,2]
[378713244,1754986238164,-643.4,0.00018655,2]
[378713245,1754986238175,-1756.7,0.00018655,2]
[378713246,1754986238186,-460.0,0.00018655,2]
[378713247,1754986238196,-3309.06,0.00018655,2]
[378713248,1754986238206,-460.0,0.00018655,2]
[378713249,1754986238216,-460.0,0.00018655,2]
[378713250,1754986238226,-152.017911,0.00018655,2]
[378713251,1754986238236,-460.0,0.00018655,2]
[378713252,1754986238245,-567.76,0.00018655,2]
[378713253,1754986238255,-460.0,0.00018655,2]
[378713254,1754986238264,-173.596924,0.00018655,2]
[378713255,1754986238274,-825.83,0.00018655,2]
[378713256,1754986238284,-173.596924,0.00018655,2]
[378713257,1754986238293,-460.0,0.00018655,2]
[378713258,1754986238302,-173.596924,0.00018655,2]
[378713259,1754986238316,-173.596924,0.00018655,2]
[378713260,1754986238325,-1281.05,0.00018655,2]
[378713261,1754986238336,-637.17,0.00018655,2]
[378713262,1754986238345,-151.0,0.00018655,2]
[378713263,1754986238354,-151.0,0.00018655,2]
[378713264,1754986238364,-460.0,0.00018655,2]
[378713265,1754986238373,-460.68890505,0.00018655,2]
[378713266,1754986238385,-151.0,0.00018655,2]
[378713267,1754986238395,-460.0,0.00018655,2]
[378713268,1754986238404,-151.0,0.00018655,2]
[378713269,1754986238414,-460.0,0.00018655,2]
[378713270,1754986238423,-151.0,0.00018655,2]
[378713271,1754986238432,-151.0,0.00018655,2]
[378713272,1754986238441,-151.0,0.00018655,2]
[378713273,1754986238451,-151.0,0.00018655,2]
[378713274,1754986238460,-151.0,0.00018655,2]
[378713275,1754986238469,-151.0,0.00018655,2]
[378713276,1754986238479,-460.0,0.00018655,2]
[378713277,1754986238488,-151.0,0.00018655,2]
[378713278,1754986238497,-152.569451,0.00018655,2]
[378713279,1754986238507,-460.0,0.00018655,2]
[378713280,1754986238516,-460.0,0.00018655,2]
[378713281,1754986238526,-460.0,0.00018655,2]
[378713282,1754986238535,-460.0,0.00018655,2]
[378713283,1754986238544,-460.0,0.00018655,2]
[378713284,1754986238554,-460.0,0.00018655,2]
[378713285,1754986238563,-461.15930319,0.00018655,2]
[378713286,1754986238573,-552.82,0.00018655,2]
[378713287,1754986238583,-460.0,0.00018655,2]
[378713288,1754986238592,-460.0,0.00018655,2]
[378713289,1754986238602,-3003.19,0.00018655,2]
[378713290,1754986238613,-460.0,0.00018655,2]
[378713291,1754986238622,-460.0,0.00018655,2]
[378713292,1754986238632,-151.0,0.00018655,2]
[378713293,1754986238641,-151.0,0.00018655,2]
[378713294,1754986238651,-460.0,0.00018655,2]
[378713295,1754986238660,-151.0,0.00018655,2]
[378713296,1754986238669,-151.0,0.00018655,2]
[378713297,1754986238679,-151.0,0.00018655,2]
[378713298,1754986238688,-460.0,0.00018655,2]
[378713299,1754986238698,-151.0,0.00018655,2]
[378713300,1754986238707,-151.0,0.00018655,2]
[378713301,1754986238717,-464.84588878,0.00018655,2]
[378713302,1754986238726,-460.0,0.00018655,2]
[378713303,1754986238735,-2056.42,0.00018655,2]
[378713304,1754986238745,-465.82206723,0.00018655,2]
[378713305,1754986238755,-460.0,0.00018655,2]
[378713306,1754986238996,-428.30336908,0.00018655,2]
[378713307,1754986239006,-765.35,0.00018655,2]
[378713308,1754986239015,-460.0,0.00018655,2]
[378713309,1754986239025,-151.0,0.00018655,2]
[378713310,1754986239038,-151.0,0.00018655,2]
[378713311,1754986239047,-151.0,0.00018655,2]
[378713312,1754986239057,-151.0,0.00018655,2]
[378713313,1754986239066,-151.0,0.00018655,2]
[378713314,1754986239075,-151.0,0.00018655,2]
[378713315,1754986239085,-151.0,0.00018655,2]
[378713316,1754986239094,-460.0,0.00018655,2]
[378713317,1754986239104,-1872.73,0.00018655,2]
[378713318,1754986239113,-460.0,0.00018655,2]
[378713319,1754986239122,-471.47936885,0.00018655,2]
[378713320,1754986239131,-461.46509219,0.00018655,2]
[378713321,1754986239141,-460.0,0.00018655,2]
[378713322,1754986239150,-460.0,0.00018655,2]
[378713323,1754986239159,-460.0,0.00018655,2]
[378713324,1754986239168,-1158.19,0.00018655,2]
[378713325,1754986239178,-460.0,0.00018655,2]
[378713326,1754986239187,-177.05823901,0.00018655,2]
[378713327,1754986239197,-460.59846875,0.00018655,2]
[378713328,1754986239206,-460.0,0.00018655,2]
[378713329,1754986239216,-1132.04,0.00018655,2]
[378713330,1754986239226,-460.0,0.00018655,2]
[378713331,1754986239235,-468.21008992,0.00018655,2]
[378713332,1754986239245,-462.10320508,0.00018655,2]
[378713333,1754986239254,-260.808944,0.00018655,2]
[378713334,1754986239264,-460.0,0.00018655,2]
[378713335,1754986239273,-151.0,0.00018655,2]
[378713336,1754986239282,-151.0,0.00018655,2]
[378713337,1754986239292,-952.152247,0.00018655,2]
[378713338,1754986239301,-460.0,0.00018655,2]
[378713339,1754986239311,-952.152247,0.00018655,2]
[378713340,1754986239320,-952.152247,0.00018655,2]
[378713341,1754986239330,-952.152247,0.00018655,2]
[378713342,1754986239340,-952.152247,0.00018655,2]
[378713343,1754986239350,-460.0,0.00018655,2]
[378713344,1754986239359,-463.97386721,0.00018655,2]
[378713345,1754986239368,-952.152247,0.00018655,2]
[378713346,1754986239378,-460.0,0.00018655,2]
[378713347,1754986239387,-952.152247,0.00018655,2]
[378713348,1754986239396,-952.152247,0.00018655,2]
[378713349,1754986239405,-952.152247,0.00018655,2]
[378713350,1754986239415,-952.152247,0.00018655,2]
[378713351,1754986239425,-952.152247,0.00018655,2]
[378713352,1754986239434,-952.152247,0.00018655,2]
[378713355,1754986239452,-952.152247,0.00018655,2]
[378713356,1754986239464,-388.54820801,0.00018655,2]
[378713357,1754986239474,-485.15588393,0.00018655,2]
[378713358,1754986239484,-952.152247,0.00018655,2]
[378713359,1754986239494,-2696.39,0.00018655,2]
[378713361,1754986239504,-151.0,0.00018655,2]
[378713363,1754986239515,-151.0,0.00018655,2]
[378713365,1754986239525,-460.0,0.00018655,2]
[378713366,1754986239535,-500.0,0.00018655,2]
[378713367,1754986239545,-460.0,0.00018655,2]
[378713368,1754986239555,-151.0,0.00018655,2]
[378713369,1754986239565,-151.0,0.00018655,2]
[378713370,1754986239575,-460.0,0.00018655,2]
[378713371,1754986239587,-461.6771346,0.00018655,2]
[378713372,1754986239597,-500.0,0.00018655,2]
[378713373,1754986239606,-669.14,0.00018655,2]
[378713374,1754986239616,-3030.53,0.00018655,2]
[378713375,1754986239626,-500.0,0.00018655,2]
[378713377,1754986239635,-460.0,0.00018655,2]
[378713378,1754986239645,-460.0,0.00018655,2]
[378713380,1754986239656,-700.54,0.00018655,2]
[378713382,1754986239666,-460.0,0.00018655,2]
[378713384,1754986239675,-501.37747728,0.00018655,2]
[378713386,1754986239685,-542.14,0.00018655,2]
[378713388,1754986239695,-461.63524623,0.00018655,2]
[378713390,1754986239705,-460.0,0.00018655,2]
[378713392,1754986239715,-151.0,0.00018655,2]
[378713394,1754986239725,-151.0,0.00018655,2]
[378713396,1754986239735,-151.0,0.00018655,2]
[378713398,1754986239745,-151.0,0.00018655,2]
[378713400,1754986239755,-151.0,0.00018655,2]
[378713402,1754986239765,-151.0,0.00018655,2]
[378713404,1754986239775,-154.719677,0.00018655,2]
[378713406,1754986239784,-460.0,0.00018655,2]
[378713408,1754986239794,-460.0,0.00018655,2]
[378713411,1754986239804,-460.0,0.00018655,2]
[378713413,1754986239813,-460.0,0.00018655,2]
[378713415,1754986239823,-460.0,0.00018655,2]
[378713417,1754986239834,-460.0,0.00018655,2]
[378713419,1754986239843,-460.0,0.00018655,2]
[378713421,1754986239853,-151.0,0.00018655,2]
[378713423,1754986239862,-151.0,0.00018655,2]
[378713425,1754986239872,-151.0,0.00018655,2]
[378713427,1754986239881,-151.0,0.00018655,2]
[378713429,1754986239891,-460.0,0.00018655,2]
[378713431,1754986239902,-151.0,0.00018655,2]
[378713433,1754986239911,-154.194601,0.00018655,2]
[378713435,1754986239921,-460.0,0.00018655,2]
[378713437,1754986239931,-1265.19,0.00018655,2]
[378713439,1754986239940,-460.0,0.00018655,2]
[378713441,1754986239950,-460.0,0.00018655,2]
[378713443,1754986239960,-298.73074238,0.00018655,2]
[378713445,1754986239969,-1110.91,0.00018655,2]
[378713447,1754986239979,-460.0,0.00018655,2]
[378713449,1754986239990,-460.0,0.00018655,2]
[378713451,1754986240008,-460.72316613,0.00018655,2]
[378713453,1754986240027,-460.0,0.00018655,2]
[378713455,1754986240041,-500.0,0.00018655,2]
[378713457,1754986240051,-3168.0,0.00018655,2]
[378713459,1754986240062,-460.0,0.00018655,2]
[378713461,1754986240073,-461.97363052,0.00018655,2]
[378713463,1754986240084,-201.90131021,0.00018655,2]
[378713465,1754986240093,-448.56262813,0.00018655,2]
[378713467,1754986240103,-460.0,0.00018655,2]
[378713468,1754986240113,-500.0,0.00018655,2]
[378713469,1754986240123,-50000.0,0.00018655,2]
[378713470,1754986240132,-460.0,0.00018656,2]
[378713471,1754986240142,-151.0,0.00018656,2]
[378713472,1754986240151,-151.0,0.00018656,2]
[378713473,1754986240161,-153.969912,0.00018656,2]
[378713474,1754986240170,-151.0,0.00018656,2]
[378713475,1754986240179,-151.0,0.00018656,2]
[378713476,1754986240189,-151.0,0.00018656,2]
[378713477,1754986240198,-151.0,0.00018656,2]
[378713478,1754986240207,-151.0,0.00018656,2]
[378713479,1754986240217,-151.0,0.00018656,2]
[378713480,1754986240227,-437.221491,0.00018656,2]
[378713481,1754986240236,-437.221491,0.00018656,2]
[378713482,1754986240246,-437.221491,0.00018656,2]
[378713483,1754986240255,-437.221491,0.00018656,2]
[378713484,1754986240265,-151.0,0.00018656,2]
[378713485,1754986240275,-151.0,0.00018656,2]
[378713486,1754986240284,-275.289959,0.00018656,2]
[378713487,1754986240294,-275.289959,0.00018656,2]
[378713488,1754986240303,-275.289959,0.00018656,2]
[378713489,1754986240313,-275.289959,0.00018656,2]
[378713490,1754986240322,-198.247082,0.00018656,2]
[378713491,1754986240333,-151.0,0.00018656,2]
[378713492,1754986240342,-151.0,0.00018656,2]
[378713493,1754986240351,-151.0,0.00018656,2]
[378713494,1754986240361,-173.596924,0.00018656,2]
[378713495,1754986240371,-173.596924,0.00018656,2]
[378713496,1754986240381,-173.596924,0.00018656,2]
[378713497,1754986240390,-173.596924,0.00018656,2]
[378713498,1754986240400,-173.596924,0.00018656,2]
[378713499,1754986240409,-173.596924,0.00018656,2]
[378713500,1754986240418,-151.0,0.00018656,2]
[378713501,1754986240429,-257.010236,0.00018656,2]
[378713502,1754986240438,-151.0,0.00018656,2]
[378713503,1754986240448,-151.0,0.00018656,2]
[378713504,1754986240458,-165.805517,0.00018656,2]
[378713505,1754986240467,-273.582107,0.00018656,2]
[378713506,1754986240477,-952.152247,0.00018656,2]
[378713507,1754986240486,-952.152247,0.00018656,2]
[378713508,1754986240495,-952.152247,0.00018656,2]
[378713509,1754986240505,-952.152247,0.00018656,2]
[378713510,1754986240515,-952.152247,0.00018656,2]
[378713511,1754986240525,-952.152242,0.00018656,2]
[378713512,1754986240534,-151.0,0.00018657,2]
[378713513,1754986240544,-151.0,0.00018657,2]
[378713514,1754986240553,-151.0,0.00018657,2]
[378713515,1754986240562,-151.84932,0.00018657,2]
[378713516,1754986240572,-151.0,0.00018657,2]
[378713517,1754986240583,-151.0,0.00018657,2]
[378713518,1754986240593,-238.350241,0.00018657,2]
[378713519,1754986240604,-151.0,0.00018657,2]
[378713520,1754986240614,-151.0,0.00018657,2]
[378713521,1754986240623,-151.85896,0.00018657,2]
[378713522,1754986240633,-151.0,0.00018657,2]
[378713523,1754986240642,-151.0,0.00018657,2]
[378713524,1754986240651,-151.0,0.00018657,2]
[378713525,1754986240661,-151.0,0.00018657,2]
[378713526,1754986240670,-151.0,0.00018657,2]
[378713527,1754986240680,-153.124499,0.00018657,2]
[378713528,1754986240690,-151.0,0.00018657,2]
[378713529,1754986240700,-151.0,0.00018657,2]
[378713530,1754986240710,-151.0,0.00018657,2]
[378713531,1754986240719,-151.0,0.00018657,2]
[378713532,1754986240729,-151.0,0.00018657,2]
[378713533,1754986240739,-1043.33,0.00018657,2]
[378713534,1754986240749,-151.0,0.00018657,2]
[378713535,1754986240758,-151.0,0.00018657,2]